[Event "10th Cesme Open-B 2024"]
[Site "Cesme"]
[Date "2024.06.27"]
[Round "6"]
[White "Turgut, Hakan"]
[Black "Rzayev, Askar Aliakbar"]
[Result "1-0"]
[ECO "C02"]
[WhiteElo "1979"]
[BlackElo "1967"]
[Annotator "NA RC"]
[PlyCount "43"]
[EventDate "2024.06.23"]
[EventType "swiss"]
[EventCountry "TUR"]
[SourceTitle "playchess.com"]
[Source "ChessBase"]
[SourceQuality "1"]
[TimeControl "5400+30"]

1. e4 {[%emt 0:03:00]} e6 {[%emt 0:01:00]} 2. d4 {[%emt 0:00:30]} d5 {[%emt 0:00:30]} 3. e5 {[%emt 0:00:30]} c5 {[%emt 0:00:30]} 4. c3 {[%emt 0:00:00]} Nc6 {[%emt 0:00:00]} 5. Nf3 {[%emt 0:00:00]} Bd7 {[%emt 0:00:00]} 6. a3 {[%emt 0:00:00]} f6 {[%emt 0:00:00]} 7. c4 {[%emt 0:09:00]} cxd4 {[%emt 0:02:00]} 8. cxd5 {[%emt 0:00:30]} Qa5+ {[%emt 0:01:30]} 9. Nbd2 {[%emt 0:02:30]} exd5 {[%emt 0:03:30]} 10. exf6 {[%emt 0:04:30]} Nxf6 {[%emt 0:01:30]} 11. Bd3 {[%emt 0:05:30]} Be7 {[%emt 0:02:30]} 12. O-O {[%emt 0:00:30]} O-O {[%emt 0:00:00]} 13. b4 {[%emt 0:03:30]} Qb6 {[%emt 0:03:00]} 14. Re1 {[%emt 0:00:30]} Rae8 {[%emt 0:00:30]} 15. Bb2 {[%emt 0:04:30]} a6 {[%emt 0:02:30]} 16. Ng5 {[%emt 0:12:30]} Bd6 {[%emt 0:17:30]} 17. Qb3 {[%emt 0:05:30]} g6 {[%emt 0:42:30]} 18. Nge4 {[%emt 0:05:30]} Ne5 {[%emt 0:00:30]} 19. Ng5 {[%emt 0:03:30]} Kg7 {[%emt 0:00:30]} 20. Qxd5 {[%emt 0:01:30]} Qc6 {[%emt 0:03:23]} 21. Bxd4 {[%emt 0:05:30]} Be6 {[%emt 0:07:50]} 22. Qb3 {[%emt 0:14:05]} 1-0

[Event "10th Cesme Open-B 2024"]
[Site "Cesme"]
[Date "2024.06.27"]
[Round "6"]
[White "Dirikolu, Deniz"]
[Black "Uzdemir, Ali Poyraz"]
[Result "0-1"]
[ECO "B66"]
[WhiteElo "1978"]
[BlackElo "1936"]
[Annotator "NA"]
[PlyCount "116"]
[EventDate "2024.06.23"]
[EventType "swiss"]
[EventCountry "TUR"]
[SourceTitle "playchess.com"]
[Source "ChessBase"]
[SourceQuality "1"]
[TimeControl "5400+30"]

1. e4 {[%emt 0:01:00]} c5 {[%emt 0:02:00]} 2. Nf3 {[%emt 0:00:30]} d6 {[%emt 0:00:00]} 3. d4 {[%emt 0:00:00]} cxd4 {[%emt 0:00:00]} 4. Nxd4 {[%emt 0:00:00]} Nf6 {[%emt 0:00:30]} 5. Nc3 {[%emt 0:00:30]} Nc6 {[%emt 0:00:30]} 6. Bg5 {[%emt 0:00:30]} e6 {[%emt 0:00:30]} 7. Qd2 {[%emt 0:00:30]} a6 {[%emt 0:00:00]} 8. Nxc6 {[%emt 0:00:00]} bxc6 {[%emt 0:00:00]} 9. O-O-O {[%emt 0:00:00]} Qa5 {[%emt 0:07:30]} 10. Bc4 {[%emt 0:00:30]} d5 {[%emt 0:10:30]} 11. Bxf6 {[%emt 0:35:30]} gxf6 {[%emt 0:00:00]} 12. exd5 {[%emt 0:00:30]} cxd5 {[%emt 0:00:00]} 13. Bxd5 {[%emt 0:00:30]} exd5 {[%emt 0:00:30]} 14. Qf4 {[%emt 0:00:30]} Be6 {[%emt 0:10:30]} 15. Qxf6 {[%emt 0:06:30]} Rg8 {[%emt 0:02:30]} 16. Nxd5 {[%emt 0:01:30]} Qc5 {[%emt 0:12:30]} 17. Rhe1 {[%emt 0:14:30]} Rg6 {[%emt 0:01:30]} 18. Qf3 {[%emt 0:00:30]} Rc8 {[%emt 0:04:30]} 19. c3 {[%emt 0:00:30]} Bh6+ {[%emt 0:01:30]} 20. Kb1 {[%emt 0:00:30]} Kf8 {[%emt 0:00:30]} 21. Nf6 {[%emt 0:12:30]} Bf5+ {[%emt 0:05:30]} 22. Ka1 {[%emt 0:00:30]} Rxf6 {[%emt 0:00:30]} 23. Rd5 {[%emt 0:00:00]} Qc6 {[%emt 0:04:30]} 24. Rxf5 {[%emt 0:00:00]} Qxf3 {[%emt 0:00:30]} 25. Rxf3 {[%emt 0:00:30]} Rxf3 {[%emt 0:00:00]} 26. gxf3 {[%emt 0:00:00]} Rd8 {[%emt 0:00:00]} 27. a4 {[%emt 0:00:00]} Rd2 {[%emt 0:00:30]} 28. Rf1 {[%emt 0:00:30]} Bg7 {[%emt 0:01:30]} 29. f4 {[%emt 0:00:30]} Ke7 {[%emt 0:00:30]} 30. Re1+ {[%emt 0:00:30]} Kd6 {[%emt 0:01:30]} 31. Re8 {[%emt 0:00:30]} Rxf2 {[%emt 0:00:30]} 32. Ra8 {[%emt 0:00:00]} Rxf4 {[%emt 0:01:30]} 33. Rxa6+ {[%emt 0:00:00]} Kc5 {[%emt 0:01:30]} 34. Ka2 {[%emt 0:00:30]} Rf2 {[%emt 0:00:30]} 35. Ra7 {[%emt 0:00:30]} Kb6 {[%emt 0:00:30]} 36. Rd7 {[%emt 0:00:30]} Bxc3 {[%emt 0:05:30]} 37. Rd6+ {[%emt 0:00:00]} Ka5 {[%emt 0:01:30]} 38. Kb3 {[%emt 0:00:00]} Bg7 {[%emt 0:01:30]} 39. Rd5+ {[%emt 0:00:30]} Kb6 {[%emt 0:00:30]} 40. Rg5 {[%emt 0:00:30]} Bf8 {[%emt 0:07:19]} 41. Rg8 {[%emt 0:00:30]} Bd6 {[%emt 0:03:16]} 42. Rg7 {[%emt 0:01:30]} Rxb2+ {[%emt 0:00:48]} 43. Kc4 {[%emt 0:00:00]} f6 {[%emt 0:01:50]} 44. h3 {[%emt 0:01:00]} h5 {[%emt 0:01:22]} 45. Kd5 {[%emt 0:00:00]} Bf4 {[%emt 0:02:44]} 46. Rh7 {[%emt 0:00:00]} Rc2 {[%emt 0:01:16]} 47. a5+ {[%emt 0:01:30]} Kxa5 {[%emt 0:01:25]} 48. Rxh5 {[%emt 0:00:30]} Re2 {[%emt 0:01:05]} 49. Rh7 {[%emt 0:00:30]} Kb6 {[%emt 0:01:08]} 50. h4 {[%emt 0:00:30]} Re5+ {[%emt 0:00:30]} 51. Kd4 {[%emt 0:00:00]} Kc6 {[%emt 0:00:45]} 52. Rf7 {[%emt 0:00:00]} Re6 {[%emt 0:00:00]} 53. h5 {[%emt 0:00:30]} Kd6 {[%emt 0:00:29]} 54. Rh7 {[%emt 0:00:30]} Bg5 {[%emt 0:01:16]} 55. Rf7 {[%emt 0:00:30]} Be3+ {[%emt 0:01:05]} 56. Kd3 {[%emt 0:00:00]} Bf4 {[%emt 0:00:38]} 57. Kd4 {[%emt 0:00:00]} Bg5 {[%emt 0:00:00]} 58. Ra7 {[%emt 0:01:30]} Be3+ {[%emt 0:00:00]} 0-1

[Event "10th Cesme Open-B 2024"]
[Site "Cesme"]
[Date "2024.06.27"]
[Round "6"]
[White "Masiya, Mfundo"]
[Black "Akkaya, Atakan"]
[Result "0-1"]
[ECO "B22"]
[WhiteElo "1971"]
[BlackElo "1780"]
[Annotator "NA RC"]
[PlyCount "67"]
[EventDate "2024.06.23"]
[EventType "swiss"]
[EventCountry "TUR"]
[SourceTitle "playchess.com"]
[Source "ChessBase"]
[SourceQuality "1"]
[TimeControl "5400+30"]

1. e4 {[%emt 0:23:00]} c5 {[%emt 0:01:00]} 2. c3 {[%emt 0:02:30]} Nf6 {[%emt 0:00:30]} 3. e5 {[%emt 0:00:30]} Nd5 {[%emt 0:00:30]} 4. d4 {[%emt 0:00:30]} cxd4 {[%emt 0:00:00]} 5. Nf3 {[%emt 0:00:30]} e6 {[%emt 0:00:00]} 6. cxd4 {[%emt 0:00:30]} d6 {[%emt 0:00:00]} 7. Bc4 {[%emt 0:00:00]} Be7 {[%emt 0:00:00]} 8. O-O {[%emt 0:00:00]} O-O {[%emt 0:00:00]} 9. Qe2 {[%emt 0:00:30]} b6 {[%emt 0:00:00]} 10. Nbd2 {[%emt 0:02:30]} Bb7 {[%emt 0:00:00]} 11. Ne4 {[%emt 0:00:30]} dxe5 {[%emt 0:00:00]} 12. dxe5 {[%emt 0:00:30]} Nd7 {[%emt 0:00:00]} 13. Bg5 {[%emt 0:11:30]} Nxe5 {[%emt 0:05:00]} 14. Nxe5 {[%emt 0:08:30]} Bxg5 {[%emt 0:00:30]} 15. Rfd1 {[%emt 0:04:30]} Bf4 {[%emt 0:05:30]} 16. Nd3 {[%emt 0:05:30]} Bxh2+ {[%emt 0:09:30]} 17. Kxh2 {[%emt 0:18:22]} Qc7+ {[%emt 0:00:30]} 18. Kg1 {[%emt 0:00:30]} Qxc4 {[%emt 0:00:30]} 19. Rac1 {[%emt 0:00:30]} Qxa2 {[%emt 0:11:30]} 20. Nd6 {[%emt 0:05:02]} Ba6 {[%emt 0:00:30]} 21. Ra1 {[%emt 0:02:20]} Bxd3 {[%emt 0:00:30]} 22. Qxd3 {[%emt 0:06:36]} Qxb2 {[%emt 0:00:00]} 23. Ne4 {[%emt 0:01:05]} Qe5 {[%emt 0:01:00]} 24. Re1 {[%emt 0:00:38]} Qf5 {[%emt 0:01:30]} 25. Ra4 {[%emt 0:02:04]} Nf6 {[%emt 0:02:30]} 26. Qg3 {[%emt 0:02:52]} Nxe4 {[%emt 0:00:30]} 27. Raxe4 {[%emt 0:00:37]} a5 {[%emt 0:00:30]} 28. Rf4 {[%emt 0:00:38]} Qc2 {[%emt 0:00:30]} 29. Rg4 {[%emt 0:00:45]} g6 {[%emt 0:00:30]} 30. Rh4 {[%emt 0:00:24]} Qb2 {[%emt 0:00:30]} 31. Re5 {[%emt 0:00:49]} a4 {[%emt 0:01:30]} 32. Qe3 {[%emt 0:01:14]} Rfc8 {[%emt 0:01:30]} 33. Kh2 {[%emt 0:00:32]} a3 {[%emt 0:00:30]} 34. Ree4 {[%emt 0:01:02]} 0-1

[Event "10th Cesme Open-B 2024"]
[Site "Cesme"]
[Date "2024.06.27"]
[Round "6"]
[White "Ilgaz, Yusuf Kerem"]
[Black "Tastan, Hakan Mete"]
[Result "1-0"]
[ECO "A55"]
[WhiteElo "1966"]
[BlackElo "1875"]
[Annotator "RC"]
[PlyCount "129"]
[EventDate "2024.06.23"]
[EventType "swiss"]
[EventCountry "TUR"]
[SourceTitle "playchess.com"]
[Source "ChessBase"]
[SourceQuality "1"]
[TimeControl "5400+30"]

1. d4 {[%emt 0:05:00]} Nf6 {[%emt 0:01:00]} 2. c4 {[%emt 0:00:30]} d6 {[%emt 0:01:30]} 3. Nc3 {[%emt 0:00:30]} Nbd7 {[%emt 0:00:30]} 4. e4 {[%emt 0:00:30]} e5 {[%emt 0:00:00]} 5. Nf3 {[%emt 0:00:00]} Be7 {[%emt 0:01:00]} 6. g3 {[%emt 0:00:00]} c6 {[%emt 0:00:30]} 7. Bg2 {[%emt 0:00:30]} O-O {[%emt 0:00:30]} 8. O-O {[%emt 0:00:30]} a6 {[%emt 0:00:00]} 9. a4 {[%emt 0:00:00]} a5 {[%emt 0:00:00]} 10. h3 {[%emt 0:00:00]} exd4 {[%emt 0:02:30]} 11. Nxd4 {[%emt 0:00:00]} Nc5 {[%emt 0:00:00]} 12. Be3 {[%emt 0:01:00]} Re8 {[%emt 0:01:00]} 13. Qc2 {[%emt 0:01:30]} Bf8 {[%emt 0:00:30]} 14. Rfe1 {[%emt 0:04:30]} g6 {[%emt 0:04:30]} 15. Rad1 {[%emt 0:00:30]} Qc7 {[%emt 0:00:30]} 16. Rd2 {[%emt 0:04:30]} Bd7 {[%emt 0:04:30]} 17. Red1 {[%emt 0:03:30]} Rad8 {[%emt 0:01:30]} 18. Bg5 {[%emt 0:05:30]} Be7 {[%emt 0:00:30]} 19. Bxf6 {[%emt 0:05:30]} Bxf6 {[%emt 0:01:30]} 20. Ndb5 {[%emt 0:01:30]} Qb8 {[%emt 0:05:30]} 21. Nxd6 {[%emt 0:01:30]} Re6 {[%emt 0:08:30]} 22. f4 {[%emt 0:01:30]} Be7 {[%emt 0:01:30]} 23. e5 {[%emt 0:02:30]} f6 {[%emt 0:02:30]} 24. Nce4 {[%emt 0:19:30]} fxe5 {[%emt 0:05:30]} 25. fxe5 {[%emt 0:11:30]} Rxe5 {[%emt 0:24:30]} 26. Nxc5 {[%emt 0:01:30]} Rxc5 {[%emt 0:01:30]} 27. Ne4 {[%emt 0:01:30]} Bf5 {[%emt 0:01:30]} 28. Rxd8+ {[%emt 0:01:30]} Bxd8 {[%emt 0:00:30]} 29. Qd2 {[%emt 0:00:30]} Bb6 {[%emt 0:03:30]} 30. Nxc5 {[%emt 0:00:30]} Qxg3 {[%emt 0:02:30]} 31. Qf2 {[%emt 0:09:19]} Qe5 {[%emt 0:02:30]} 32. Re1 {[%emt 0:03:25]} Qd6 {[%emt 0:00:30]} 33. Kh1 {[%emt 0:01:07]} Bxc5 {[%emt 0:01:30]} 34. Qe2 {[%emt 0:00:35]} Bb4 {[%emt 0:03:30]} 35. Qe8+ {[%emt 0:02:57]} Kg7 {[%emt 0:00:30]} 36. Qe5+ {[%emt 0:00:21]} Qxe5 {[%emt 0:00:30]} 37. Rxe5 {[%emt 0:00:30]} Bc2 {[%emt 0:00:00]} 38. Re8 {[%emt 0:00:00]} Bxa4 {[%emt 0:02:41]} 39. Rb8 {[%emt 0:00:00]} Bb3 {[%emt 0:01:45]} 40. Rxb7+ {[%emt 0:00:10]} Kh6 {[%emt 0:00:07]} 41. Bf1 {[%emt 0:00:38]} Bc2 {[%emt 0:01:20]} 42. Kg2 {[%emt 0:01:11]} Bc5 {[%emt 0:03:06]} 43. Be2 {[%emt 0:01:43]} a4 {[%emt 0:01:44]} 44. Rd7 {[%emt 0:08:03]} a3 {[%emt 0:06:15]} 45. bxa3 {[%emt 0:00:30]} Bxa3 {[%emt 0:00:00]} 46. Bd3 {[%emt 0:00:18]} Bb3 {[%emt 0:00:56]} 47. Rc7 {[%emt 0:00:56]} c5 {[%emt 0:00:40]} 48. Kf3 {[%emt 0:01:12]} Bd1+ {[%emt 0:01:28]} 49. Ke4 {[%emt 0:00:41]} Bb4 {[%emt 0:00:52]} 50. Rc6 {[%emt 0:02:24]} Kg5 {[%emt 0:00:36]} 51. Ke3 {[%emt 0:00:32]} Bh5 {[%emt 0:01:49]} 52. Rc7 {[%emt 0:00:23]} h6 {[%emt 0:03:09]} 53. Rc6 {[%emt 0:00:12]} Ba3 {[%emt 0:00:16]} 54. Kf2 {[%emt 0:00:51]} Bb2 {[%emt 0:01:32]} 55. Rxc5+ {[%emt 0:00:30]} Kh4 {[%emt 0:00:00]} 56. Kg2 {[%emt 0:00:30]} Bc1 {[%emt 0:00:38]} 57. Rd5 {[%emt 0:01:55]} g5 {[%emt 0:00:13]} 58. c5 {[%emt 0:00:14]} g4 {[%emt 0:00:47]} 59. hxg4 {[%emt 0:00:55]} Bxg4 {[%emt 0:00:02]} 60. c6 {[%emt 0:00:08]} Bf4 {[%emt 0:00:23]} 61. Rd4 {[%emt 0:00:52]} Be5 {[%emt 0:00:30]} 62. Re4 {[%emt 0:00:00]} Bd6 {[%emt 0:00:22]} 63. Be2 {[%emt 0:00:21]} h5 {[%emt 0:00:30]} 64. Bxg4 {[%emt 0:00:30]} hxg4 {[%emt 0:00:00]} 65. Re6 {[%emt 0:00:00]} 1-0

[Event "10th Cesme Open-B 2024"]
[Site "Cesme"]
[Date "2024.06.27"]
[Round "6"]
[White "Hasirci, Ozgur Deniz"]
[Black "Korkmaz, Necmettin"]
[Result "0-1"]
[ECO "C13"]
[WhiteElo "1903"]
[BlackElo "1999"]
[Annotator "RC"]
[PlyCount "141"]
[EventDate "2024.06.23"]
[EventType "swiss"]
[EventCountry "TUR"]
[SourceTitle "playchess.com"]
[Source "ChessBase"]
[SourceQuality "1"]
[TimeControl "5400+30"]

1. e4 e6 2. d4 d5 3. Nc3 Nf6 4. Bg5 dxe4 5. Nxe4 Be7 6. Bxf6 gxf6 7. Nf3 f5 8. Ng3 h5 9. h4 Qd6 10. Qd2 c5 11. Qc3 Bf6 12. O-O-O Nd7 13. Qa3 Qb6 14. d5 Ne5 15. dxe6 Bxe6 16. Nxf5 Bxf5 17. Nxe5 Bxe5 18. Re1 Qh6+ 19. Kb1 f6 20. Qxc5 Kf7 21. Bc4+ Kg6 22. Qd5 Qf4 23. g3 Qd4 24. Qxd4 Bxd4 25. Re7 Rac8 26. Bb3 Rh7 27. Re2 Rhc7 28. f3 b5 29. Rf1 a5 30. g4 hxg4 31. fxg4 Bxg4 32. Re4 Bh3 33. Rh1 Bf5 34. Rxd4 a4 35. Bd5 Rxc2 36. Be4 Bxe4 37. Rxe4 Rf2 38. Rb4 Rc5 39. Rc1 Re5 40. a3 Rh2 41. Rf1 f5 42. Rbf4 Kf6 43. Ka1 Rhe2 44. Kb1 Ke6 45. Kc1 Rg2 46. Kb1 Kf6 47. Kc1 Kg6 48. Kb1 Ree2 49. Rb4 Re5 50. Rbf4 Rg4 51. Kc2 Re2+ 52. Kc3 Re3+ 53. Kc2 Rg2+ 54. R4f2 Rxf2+ 55. Rxf2 Re4 56. h5+ Kg5 57. Rh2 Re6 58. Kd3 Rh6 59. Rg2+ Kxh5 60. Kd4 Re6 61. Kc5 Re5+ 62. Kd4 Re8 63. Kc5 Rb8 64. Kd5 Re8 65. Kc5 Re5+ 66. Kd4 Re1 67. Kd3 f4 68. Rg8 f3 69. Rf8 Kg4 {[%emt 2:03:19]} 70. Rg8+ {[%emt 2:05:20]} Kf4 {[%emt 0:00:30]} 71. Kd4 {[%emt 0:00:40]} 0-1

[Event "10th Cesme Open-B 2024"]
[Site "Cesme"]
[Date "2024.06.27"]
[Round "6"]
[White "Yildiz, Talat"]
[Black "Atis, Hasan"]
[Result "1/2-1/2"]
[ECO "B48"]
[WhiteElo "1891"]
[BlackElo "1988"]
[Annotator "RC"]
[PlyCount "170"]
[EventDate "2024.06.23"]
[EventType "swiss"]
[EventCountry "TUR"]
[SourceTitle "playchess.com"]
[Source "ChessBase"]
[SourceQuality "1"]
[TimeControl "5400+30"]

1. e4 c5 2. Nf3 e6 3. d4 cxd4 4. Nxd4 Nc6 5. Nc3 Qc7 6. Be3 a6 7. Qf3 Nf6 8. O-O-O Ne5 9. Qg3 b5 10. Bxb5 axb5 11. Ndxb5 Qb8 12. Bf4 d6 13. Rxd6 Nh5 14. Qg5 Bxd6 15. Nxd6+ Qxd6 16. Bxe5 Ra5 17. Nd5 Qd8 18. Qxd8+ Kxd8 19. Bc7+ Kd7 20. Bxa5 exd5 21. exd5 Bb7 22. Rd1 Rc8 23. d6 Bxg2 24. Rd4 f5 25. c4 Be4 26. Bc7 Nf4 27. Rd2 Ne6 28. b4 Nxc7 29. dxc7+ Kxc7 30. Kb2 g5 31. Kc3 h5 32. c5 Bc6 33. Kc4 Re8 34. Rd4 Re1 35. a4 Bxa4 36. b5 Re4 37. Rxe4 fxe4 38. b6+ Kc6 39. Kd4 Bc2 40. Ke5 h4 41. Kd4 Bb1 42. Ke3 Bd3 43. Kd4 Bc2 44. Ke3 Bb1 45. Kd4 Kb7 46. Ke3 Bd3 47. Kd4 h3 48. Ke3 Kc6 49. Kd4 Bf1 50. Kxe4 g4 51. Kf4 Be2 52. Kg3 Bf3 53. Kf4 Kxc5 54. b7 Bxb7 55. Kxg4 Bc8+ 56. Kf3 Kd4 57. Ke2 Ke4 58. f4 Kxf4 59. Kf2 Ba6 60. Kg1 Kf3 61. Kh1 Bd3 62. Kg1 Bc4 63. Kh1 Be6 64. Kg1 Bd5 65. Kf1 Kf4 66. Kf2 Bg2 67. Kg1 Ke4 68. Kf2 Kd3 69. Kg1 Kd2 70. Kf2 Kd1 71. Kg1 Bc6 72. Kf2 Bd7 73. Kf1 Bb5+ 74. Kf2 Kd2 75. Kg3 Bf1 76. Kf2 Bd3 77. Kg3 Bf5 78. Kf2 Kd3 {[%emt 2:05:34]} 79. Kf3 {[%emt 2:03:01]} Be6 {[%emt 0:00:30]} 80. Kf2 {[%emt 0:00:30]} Ke4 {[%emt 0:00:21]} 81. Ke2 {[%emt 0:03:03]} Kf4 {[%emt 0:00:30]} 82. Kf2 {[%emt 0:00:30]} Bd5 {[%emt 0:00:00]} 83. Kf1 {[%emt 0:00:11]} Kf3 {[%emt 0:00:07]} 84. Kg1 {[%emt 0:00:30]} Bc4 {[%emt 0:00:30]} 85. Kh1 {[%emt 0:00:30]} Kf2 {[%emt 0:00:00]} 1/2-1/2

[Event "10th Cesme Open-B 2024"]
[Site "Cesme"]
[Date "2024.06.27"]
[Round "6"]
[White "Asgharvand, Davood"]
[Black "Buyuk, Eymen Eren"]
[Result "0-1"]
[ECO "C15"]
[WhiteElo "1881"]
[BlackElo "1894"]
[Annotator "NA RC"]
[PlyCount "64"]
[EventDate "2024.06.23"]
[EventType "swiss"]
[EventCountry "TUR"]
[SourceTitle "playchess.com"]
[Source "ChessBase"]
[SourceQuality "1"]
[TimeControl "5400+30"]

1. e4 {[%emt 0:01:00]} e6 {[%emt 0:01:00]} 2. d4 {[%emt 0:00:30]} d5 {[%emt 0:00:30]} 3. Nc3 {[%emt 0:00:00]} Bb4 {[%emt 0:00:00]} 4. Bd3 {[%emt 0:00:00]} c5 {[%emt 0:01:00]} 5. dxc5 {[%emt 0:09:30]} d4 {[%emt 0:09:30]} 6. a3 {[%emt 0:00:30]} Bxc5 {[%emt 0:00:30]} 7. Nce2 {[%emt 0:00:00]} Nc6 {[%emt 0:00:30]} 8. f4 {[%emt 0:00:00]} e5 {[%emt 0:04:30]} 9. Nf3 {[%emt 0:02:30]} exf4 {[%emt 0:03:30]} 10. Bxf4 {[%emt 0:00:30]} Nf6 {[%emt 0:01:30]} 11. b4 {[%emt 0:07:30]} Bb6 {[%emt 0:00:30]} 12. Bg5 {[%emt 0:03:30]} h6 {[%emt 0:03:30]} 13. Bh4 {[%emt 0:00:30]} g5 {[%emt 0:05:30]} 14. Bf2 {[%emt 0:02:30]} Ng4 {[%emt 0:01:30]} 15. O-O {[%emt 0:08:30]} O-O {[%emt 0:04:30]} 16. Ng3 {[%emt 0:00:30]} Ne3 {[%emt 0:00:30]} 17. Bxe3 {[%emt 0:00:30]} dxe3 {[%emt 0:00:00]} 18. Kh1 {[%emt 0:02:30]} Bg4 {[%emt 0:07:00]} 19. h3 {[%emt 0:00:30]} Be6 {[%emt 0:08:30]} 20. b5 {[%emt 0:04:30]} Nd4 {[%emt 0:00:30]} 21. Nxd4 {[%emt 0:00:30]} Qxd4 {[%emt 0:08:30]} 22. Qh5 {[%emt 0:06:30]} Qe5 {[%emt 0:04:30]} 23. Ne2 {[%emt 0:13:30]} Bc7 {[%emt 0:00:30]} 24. g3 {[%emt 0:00:00]} Kg7 {[%emt 0:02:30]} 25. Rae1 {[%emt 0:01:00]} f5 {[%emt 0:12:49]} 26. exf5 {[%emt 0:08:30]} Bxf5 {[%emt 0:00:11]} 27. Bxf5 {[%emt 0:08:30]} Rxf5 {[%emt 0:00:30]} 28. Rd1 {[%emt 0:00:41]} Rd8 {[%emt 0:01:55]} 29. Qg4 {[%emt 0:02:00]} Qxb5 {[%emt 0:02:56]} 30. Nf4 {[%emt 0:07:07]} Bxf4 {[%emt 0:01:16]} 31. Rxd8 {[%emt 0:04:41]} Qxf1+ {[%emt 0:00:30]} 32. Kh2 {[%emt 0:00:30]} Bxg3+ {[%emt 0:00:00]} 0-1

[Event "10th Cesme Open-B 2024"]
[Site "Cesme"]
[Date "2024.06.27"]
[Round "6"]
[White "Colak, Tugay"]
[Black "Dogan, Umut Anil"]
[Result "0-1"]
[ECO "B10"]
[WhiteElo "1878"]
[BlackElo "1982"]
[Annotator "RC"]
[PlyCount "78"]
[EventDate "2024.06.23"]
[EventType "swiss"]
[EventCountry "TUR"]
[SourceTitle "playchess.com"]
[Source "ChessBase"]
[SourceQuality "1"]
[TimeControl "5400+30"]

1. e4 {[%emt 0:01:00]} c6 {[%emt 0:01:00]} 2. Nf3 {[%emt 0:00:30]} d5 {[%emt 0:00:30]} 3. exd5 {[%emt 0:00:00]} cxd5 {[%emt 0:00:00]} 4. Ne5 {[%emt 0:00:00]} Nc6 {[%emt 0:00:00]} 5. Bb5 {[%emt 0:00:00]} Bd7 {[%emt 0:00:00]} 6. Nxd7 {[%emt 0:00:00]} Qxd7 {[%emt 0:00:00]} 7. d4 {[%emt 0:00:00]} a6 {[%emt 0:01:30]} 8. Be2 {[%emt 0:04:00]} e6 {[%emt 0:00:30]} 9. O-O {[%emt 0:01:30]} Bd6 {[%emt 0:00:30]} 10. c3 {[%emt 0:02:30]} f5 {[%emt 0:00:30]} 11. Re1 {[%emt 0:03:30]} Nf6 {[%emt 0:00:30]} 12. Bh5+ {[%emt 0:03:30]} g6 {[%emt 0:00:30]} 13. Bf3 {[%emt 0:02:30]} Ne4 {[%emt 0:03:30]} 14. Bxe4 {[%emt 0:00:30]} fxe4 {[%emt 0:00:30]} 15. f3 {[%emt 0:04:30]} Qc7 {[%emt 0:05:30]} 16. h3 {[%emt 0:04:30]} Bh2+ {[%emt 0:01:30]} 17. Kh1 {[%emt 0:00:30]} Bg3 {[%emt 0:00:30]} 18. Rf1 {[%emt 0:01:30]} O-O {[%emt 0:00:30]} 19. Bh6 {[%emt 0:01:30]} e3 {[%emt 0:10:30]} 20. Qe2 {[%emt 0:11:30]} Bf4 {[%emt 0:05:30]} 21. Bxf8 {[%emt 0:00:30]} Rxf8 {[%emt 0:00:30]} 22. Na3 {[%emt 0:01:30]} Qe7 {[%emt 0:02:30]} 23. Nc2 {[%emt 0:03:30]} Qg5 {[%emt 0:00:30]} 24. Nxe3 {[%emt 0:09:30]} Bxe3 {[%emt 0:01:30]} 25. Rae1 {[%emt 0:01:30]} Bf4 {[%emt 0:02:30]} 26. Qxe6+ {[%emt 0:00:30]} Kg7 {[%emt 0:00:30]} 27. Qg4 {[%emt 0:00:30]} Qd8 {[%emt 0:01:30]} 28. Re6 {[%emt 0:01:30]} Qc7 {[%emt 0:11:30]} 29. Rfe1 {[%emt 0:02:30]} Rf5 {[%emt 0:11:30]} 30. Re8 {[%emt 0:20:46]} Bg5 {[%emt 0:13:30]} 31. h4 {[%emt 0:04:07]} Bxh4 {[%emt 0:01:30]} 32. R1e2 {[%emt 0:05:04]} Bf6 {[%emt 0:03:30]} 33. Kg1 {[%emt 0:03:50]} Rh5 {[%emt 0:03:03]} 34. Qe6 {[%emt 0:02:17]} Qh2+ {[%emt 0:06:15]} 35. Kf2 {[%emt 0:00:18]} Qh4+ {[%emt 0:04:14]} 36. Ke3 {[%emt 0:02:34]} Re5+ {[%emt 0:01:47]} 37. dxe5 {[%emt 0:03:07]} Bg5+ {[%emt 0:00:30]} 38. Kd3 {[%emt 0:00:30]} Qc4+ {[%emt 0:00:30]} 39. Kc2 {[%emt 0:00:00]} Nd4+ {[%emt 0:00:00]} 0-1

[Event "10th Cesme Open-B 2024"]
[Site "Cesme"]
[Date "2024.06.27"]
[Round "6"]
[White "Kolat, Ata"]
[Black "Kocakaplan, Emre"]
[Result "1/2-1/2"]
[ECO "D02"]
[WhiteElo "1858"]
[BlackElo "1944"]
[Annotator "RC"]
[PlyCount "116"]
[EventDate "2024.06.23"]
[EventType "swiss"]
[EventCountry "TUR"]
[SourceTitle "playchess.com"]
[Source "ChessBase"]
[SourceQuality "1"]
[TimeControl "5400+30"]

1. d4 {[%emt 0:01:00]} e6 {[%emt 0:01:00]} 2. Bf4 {[%emt 0:00:30]} Nf6 {[%emt 0:00:30]} 3. e3 {[%emt 0:00:30]} d5 {[%emt 0:00:30]} 4. Nd2 {[%emt 0:00:30]} Bd6 {[%emt 0:00:30]} 5. Bg3 {[%emt 0:00:30]} c5 {[%emt 0:00:30]} 6. c3 {[%emt 0:00:30]} O-O {[%emt 0:00:30]} 7. Bd3 {[%emt 0:00:30]} Qc7 {[%emt 0:00:30]} 8. Ngf3 {[%emt 0:00:30]} Nbd7 {[%emt 0:00:30]} 9. e4 {[%emt 0:07:30]} e5 {[%emt 0:29:30]} 10. dxe5 {[%emt 0:00:30]} Nxe5 {[%emt 0:00:30]} 11. Nxe5 {[%emt 0:00:30]} Bxe5 {[%emt 0:00:30]} 12. O-O {[%emt 0:00:30]} Bxg3 {[%emt 0:00:30]} 13. hxg3 {[%emt 0:00:30]} Bg4 {[%emt 0:00:30]} 14. Qa4 {[%emt 0:00:30]} c4 {[%emt 0:00:30]} 15. Bb1 {[%emt 0:00:30]} b5 {[%emt 0:00:30]} 16. Qc2 {[%emt 0:00:30]} Be2 {[%emt 0:00:30]} 17. Re1 {[%emt 0:00:30]} Bd3 {[%emt 0:00:30]} 18. Qd1 {[%emt 0:24:30]} dxe4 {[%emt 0:23:30]} 19. Nxe4 {[%emt 0:01:30]} Nxe4 {[%emt 0:00:30]} 20. Bxd3 {[%emt 0:00:30]} Nxf2 {[%emt 0:11:30]} 21. Bxh7+ {[%emt 0:02:30]} Kxh7 {[%emt 0:00:30]} 22. Qh5+ {[%emt 0:00:30]} Kg8 {[%emt 0:00:30]} 23. Kxf2 {[%emt 0:00:30]} Qb6+ {[%emt 0:01:30]} 24. Kf1 {[%emt 0:03:30]} Rac8 {[%emt 0:00:30]} 25. Rad1 {[%emt 0:14:30]} Rc6 {[%emt 0:04:30]} 26. Re4 {[%emt 0:09:30]} Rf6+ {[%emt 0:04:37]} 27. Rf4 {[%emt 0:03:30]} Rh6 {[%emt 0:00:58]} 28. Qf3 {[%emt 0:03:30]} Rh1+ {[%emt 0:07:48]} 29. Ke2 {[%emt 0:00:30]} Rxd1 {[%emt 0:00:30]} 30. Kxd1 {[%emt 0:00:00]} Rd8+ {[%emt 0:00:48]} 31. Kc2 {[%emt 0:06:14]} Qg6+ {[%emt 0:02:45]} 32. Kc1 {[%emt 0:02:02]} Qe6 {[%emt 0:02:05]} 33. Re4 {[%emt 0:01:15]} Qd6 {[%emt 0:02:54]} 34. Qe2 {[%emt 0:04:59]} Qh6+ {[%emt 0:02:14]} 35. Kc2 {[%emt 0:00:57]} Qg6 {[%emt 0:00:23]} 36. Kc1 {[%emt 0:01:52]} Qxg3 {[%emt 0:01:25]} 37. Re8+ {[%emt 0:00:30]} Rxe8 {[%emt 0:00:30]} 38. Qxe8+ {[%emt 0:00:30]} Kh7 {[%emt 0:00:00]} 39. Qxf7 {[%emt 0:00:04]} Qe3+ {[%emt 0:00:00]} 40. Kc2 {[%emt 0:00:27]} Qd3+ {[%emt 0:00:09]} 41. Kc1 {[%emt 0:00:30]} Kh6 {[%emt 0:01:43]} 42. Qf4+ {[%emt 0:01:56]} g5 {[%emt 0:00:25]} 43. Qf6+ {[%emt 0:01:53]} Kh5 {[%emt 0:00:33]} 44. Qf7+ {[%emt 0:01:17]} Kg4 {[%emt 0:00:33]} 45. Qe6+ {[%emt 0:02:17]} Kh5 {[%emt 0:01:04]} 46. Qf7+ {[%emt 0:00:44]} Kh4 {[%emt 0:00:17]} 47. Qf2+ {[%emt 0:02:41]} Kg4 {[%emt 0:00:21]} 48. Qe1 {[%emt 0:00:51]} Kf4 {[%emt 0:00:41]} 49. Qf2+ {[%emt 0:00:51]} Ke4 {[%emt 0:00:21]} 50. Qf6 {[%emt 0:00:57]} Qe3+ {[%emt 0:00:50]} 51. Kc2 {[%emt 0:00:27]} Qe2+ {[%emt 0:00:22]} 52. Kc1 {[%emt 0:00:37]} Qe1+ {[%emt 0:00:30]} 53. Kc2 {[%emt 0:00:30]} Qe2+ {[%emt 0:00:02]} 54. Kc1 {[%emt 0:00:00]} Qe3+ {[%emt 0:00:30]} 55. Kc2 {[%emt 0:00:00]} Qf4 {[%emt 0:01:04]} 56. Qe6+ {[%emt 0:00:17]} Qe5 {[%emt 0:00:12]} 57. Qg4+ {[%emt 0:00:48]} Qf4 {[%emt 0:01:06]} 58. Qe6+ {[%emt 0:00:30]} Qe5 {[%emt 0:00:00]} 1/2-1/2